[Event "Live Chess"]
[Site "Chess.com"]
[Date "2023.05.21"]
[Round "-"]
[White "JoshMcK"]
[Black "EdenHazard8"]
[Result "1/2-1/2"]
[WhiteElo "1518"]
[BlackElo "1942"]
[TimeControl "300"]
[EndTime "4:11:08 PDT"]
[Termination "Game drawn by repetition"]

1. e4 {[%clk 0:04:58]} 1... c6 {[%clk 0:04:59.2]} 2. d4 {[%clk 0:04:56.6]} 2...
d5 {[%clk 0:04:59.1]} 3. e5 {[%clk 0:04:54.9]} 3... c5 {[%clk 0:04:58.3]} 4. Nf3
{[%clk 0:04:53.1]} 4... Nc6 {[%clk 0:04:57.9]} 5. Bb5 {[%clk 0:04:49.6]} 5...
Bg4 {[%clk 0:04:56.4]} 6. h3 {[%clk 0:04:44.6]} 6... Bxf3 {[%clk 0:04:54.8]} 7.
Qxf3 {[%clk 0:04:41.8]} 7... cxd4 {[%clk 0:04:52.7]} 8. O-O {[%clk 0:04:38.7]}
8... e6 {[%clk 0:04:51]} 9. Nd2 {[%clk 0:04:34.2]} 9... Ne7 {[%clk 0:04:48.2]}
10. Nb3 {[%clk 0:04:31.4]} 10... Nf5 {[%clk 0:04:46.1]} 11. g4 {[%clk
0:04:11.3]} 11... Ne7 {[%clk 0:04:40.4]} 12. Nxd4 {[%clk 0:04:08.3]} 12... Rc8
{[%clk 0:04:38.8]} 13. c3 {[%clk 0:04:04.2]} 13... Ng6 {[%clk 0:04:32.3]} 14.
Qg3 {[%clk 0:03:57.2]} 14... Be7 {[%clk 0:04:29.5]} 15. Nxc6 {[%clk 0:03:46.2]}
15... bxc6 {[%clk 0:04:27.1]} 16. Bd3 {[%clk 0:03:45.3]} 16... O-O {[%clk
0:04:25]} 17. Bxg6 {[%clk 0:03:31.2]} 17... hxg6 {[%clk 0:04:21.8]} 18. Be3
{[%clk 0:03:22.2]} 18... c5 {[%clk 0:04:19]} 19. a3 {[%clk 0:03:14.5]} 19... Rb8
{[%clk 0:04:11.3]} 20. Rab1 {[%clk 0:03:11.4]} 20... c4 {[%clk 0:04:08.5]} 21.
Bxa7 {[%clk 0:03:08]} 21... Rb3 {[%clk 0:04:07.1]} 22. Be3 {[%clk 0:03:02.3]}
22... Qa5 {[%clk 0:04:04.5]} 23. h4 {[%clk 0:02:45]} 23... Rfb8 {[%clk
0:04:01.9]} 24. Bc1 {[%clk 0:02:42.2]} 24... Bxa3 {[%clk 0:03:58.9]} 25. h5
{[%clk 0:02:39.1]} 25... Bxb2 {[%clk 0:03:53.7]} 26. Bxb2 {[%clk 0:02:37.1]}
26... Rxb2 {[%clk 0:03:53.6]} 27. Rxb2 {[%clk 0:02:35]} 27... Rxb2 {[%clk
0:03:52.8]} 28. hxg6 {[%clk 0:02:33.4]} 28... fxg6 {[%clk 0:03:51.3]} 29. Qh4
{[%clk 0:02:26.1]} 29... Qxc3 {[%clk 0:03:42.2]} 30. Qd8+ {[%clk 0:02:19.9]}
30... Kf7 {[%clk 0:03:35]} 31. Qd7+ {[%clk 0:02:18.7]} 31... Kf8 {[%clk
0:03:34]} 32. Qd8+ {[%clk 0:02:18]} 32... Kf7 {[%clk 0:03:33.3]} 33. Qd7+ {[%clk
0:02:17.4]} 33... Kg8 {[%clk 0:03:33.2]} 34. Qd8+ {[%clk 0:02:16.4]} 34... Kh7
{[%clk 0:03:31.9]} 35. Qh4+ {[%clk 0:02:15.2]} 35... Kg8 {[%clk 0:03:31.6]} 36.
Qd8+ {[%clk 0:02:14.5]} 1/2-1/2

[Event "Live Chess"]
[Site "Chess.com"]
[Date "2023.05.21"]
[Round "-"]
[White "Prijmak"]
[Black "Ferrarifan27"]
[Result "0-1"]
[WhiteElo "1054"]
[BlackElo "2076"]
[TimeControl "300"]
[EndTime "4:11:14 PDT"]
[Termination "Ferrarifan27 won by resignation"]

1. e4 {[%clk 0:04:57.4]} 1... e5 {[%clk 0:04:58.7]} 2. f4 {[%clk 0:04:55.4]}
2... Nc6 {[%clk 0:04:58.3]} 3. Nf3 {[%clk 0:04:54.4]} 3... exf4 {[%clk
0:04:57.3]} 4. Bc4 {[%clk 0:04:53.2]} 4... g5 {[%clk 0:04:55.6]} 5. d4 {[%clk
0:04:51.8]} 5... Be7 {[%clk 0:04:52.3]} 6. O-O {[%clk 0:04:48.4]} 6... d6 {[%clk
0:04:51.5]} 7. Nc3 {[%clk 0:04:45.8]} 7... Bg4 {[%clk 0:04:50.3]} 8. Nd5 {[%clk
0:04:44.2]} 8... Nf6 {[%clk 0:04:44]} 9. Nxe7 {[%clk 0:04:42]} 9... Qxe7 {[%clk
0:04:43.9]} 10. e5 {[%clk 0:03:48.6]} 10... dxe5 {[%clk 0:04:16.5]} 11. dxe5
{[%clk 0:03:43.9]} 11... Nxe5 {[%clk 0:04:14.1]} 12. Re1 {[%clk 0:03:32.8]}
12... Bxf3 {[%clk 0:04:11.7]} 13. Rxe5 {[%clk 0:03:16.4]} 13... Bxd1 {[%clk
0:04:07.8]} 14. Rxe7+ {[%clk 0:03:14.6]} 14... Kxe7 {[%clk 0:04:07.5]} 15. Bd2
{[%clk 0:03:11.4]} 15... Bg4 {[%clk 0:04:03.2]} 16. Bb4+ {[%clk 0:03:09]} 16...
Kd7 {[%clk 0:03:57.7]} 17. h3 {[%clk 0:03:06.1]} 17... Be6 {[%clk 0:03:55.7]}
18. Bxe6+ {[%clk 0:02:59.1]} 18... fxe6 {[%clk 0:03:54.1]} 19. Bc3 {[%clk
0:02:58.1]} 19... Rhf8 {[%clk 0:03:52.3]} 20. Re1 {[%clk 0:02:53.9]} 20... Rae8
{[%clk 0:03:48.8]} 21. Be5 {[%clk 0:02:49.6]} 21... Nd5 {[%clk 0:03:46.4]} 22.
c4 {[%clk 0:02:47.4]} 22... Ne3 {[%clk 0:03:44]} 23. b3 {[%clk 0:02:42.4]} 23...
Rf5 {[%clk 0:03:42.1]} 24. Bd4 {[%clk 0:02:37.4]} 24... Nc2 {[%clk 0:03:39.3]}
0-1

[Event "Live Chess"]
[Site "Chess.com"]
[Date "2023.05.21"]
[Round "-"]
[White "yeetpizza74"]
[Black "JoeyCage"]
[Result "0-1"]
[WhiteElo "502"]
[BlackElo "2302"]
[TimeControl "300"]
[EndTime "4:11:35 PDT"]
[Termination "JoeyCage won by checkmate"]

1. e4 {[%clk 0:04:57.7]} 1... c5 {[%clk 0:04:57.6]} 2. Nf3 {[%clk 0:04:55.3]}
2... Nc6 {[%clk 0:04:56.6]} 3. c3 {[%clk 0:04:50.8]} 3... d5 {[%clk 0:04:53.1]}
4. d4 {[%clk 0:04:49.1]} 4... dxe4 {[%clk 0:04:51.1]} 5. Ne5 {[%clk 0:04:43]}
5... Nxe5 {[%clk 0:04:48.9]} 6. dxe5 {[%clk 0:04:37.2]} 6... Qxd1+ {[%clk
0:04:47.3]} 7. Kxd1 {[%clk 0:04:36.3]} 7... f5 {[%clk 0:04:42.8]} 8. exf6 {[%clk
0:04:32.8]} 8... exf6 {[%clk 0:04:41.5]} 9. Bc4 {[%clk 0:04:28]} 9... Bf5 {[%clk
0:04:36]} 10. f3 {[%clk 0:03:57.1]} 10... exf3 {[%clk 0:04:33.1]} 11. gxf3
{[%clk 0:03:55.7]} 11... O-O-O+ {[%clk 0:04:31.4]} 12. Bd2 {[%clk 0:03:53.5]}
12... Bd6 {[%clk 0:04:29.8]} 13. Bxg8 {[%clk 0:03:51.3]} 13... Rhxg8 {[%clk
0:04:28.1]} 14. Re1 {[%clk 0:03:49]} 14... Bxh2 {[%clk 0:04:25.7]} 15. b4 {[%clk
0:03:45.1]} 15... Bf4 {[%clk 0:04:23.9]} 16. bxc5 {[%clk 0:03:38.4]} 16... Bxb1
{[%clk 0:04:21.6]} 17. Rxb1 {[%clk 0:03:36.2]} 17... Rxd2+ {[%clk 0:04:20]} 18.
Kc1 {[%clk 0:03:33.2]} 18... Rxa2+ {[%clk 0:04:18.6]} 19. Kd1 {[%clk 0:03:29.8]}
19... Rd8# {[%clk 0:04:17.2]} 0-1

[Event "Live Chess"]
[Site "Chess.com"]
[Date "2023.05.21"]
[Round "-"]
[White "GwaryTek"]
[Black "Bunny55"]
[Result "1-0"]
[WhiteElo "2038"]
[BlackElo "982"]
[TimeControl "300"]
[EndTime "4:11:36 PDT"]
[Termination "GwaryTek won by resignation"]

1. d4 {[%clk 0:04:59.4]} 1... Nf6 {[%clk 0:04:57.8]} 2. Bg5 {[%clk 0:04:57]}
2... g6 {[%clk 0:04:56.5]} 3. Bxf6 {[%clk 0:04:56.2]} 3... exf6 {[%clk
0:04:55.5]} 4. Nc3 {[%clk 0:04:56.1]} 4... Bg7 {[%clk 0:04:54.6]} 5. Nf3 {[%clk
0:04:56]} 5... O-O {[%clk 0:04:53.2]} 6. h4 {[%clk 0:04:55.9]} 6... f5 {[%clk
0:04:52.3]} 7. h5 {[%clk 0:04:55.8]} 7... Nc6 {[%clk 0:04:51.3]} 8. hxg6 {[%clk
0:04:55.7]} 8... fxg6 {[%clk 0:04:48]} 9. e3 {[%clk 0:04:54]} 9... d5 {[%clk
0:04:45.5]} 10. b3 {[%clk 0:04:51.8]} 10... Qe7 {[%clk 0:04:43.3]} 11. Nxd5
{[%clk 0:04:50.6]} 1-0

[Event "Live Chess"]
[Site "Chess.com"]
[Date "2023.05.21"]
[Round "-"]
[White "FlorinHristea"]
[Black "Greenbecker"]
[Result "0-1"]
[WhiteElo "1818"]
[BlackElo "1667"]
[TimeControl "300"]
[EndTime "4:11:45 PDT"]
[Termination "Greenbecker won by resignation"]

1. e4 {[%clk 0:04:58.3]} 1... e6 {[%clk 0:04:57.3]} 2. d4 {[%clk 0:04:56.5]}
2... d5 {[%clk 0:04:56.2]} 3. e5 {[%clk 0:04:55.9]} 3... c5 {[%clk 0:04:54.9]}
4. c3 {[%clk 0:04:54.7]} 4... Nc6 {[%clk 0:04:54.4]} 5. Be3 {[%clk 0:04:53.2]}
5... cxd4 {[%clk 0:04:50.5]} 6. Bxd4 {[%clk 0:04:52.1]} 6... Nxd4 {[%clk
0:04:49.1]} 7. cxd4 {[%clk 0:04:51.2]} 7... Qb6 {[%clk 0:04:47.7]} 8. Qd2 {[%clk
0:04:40.9]} 8... Bd7 {[%clk 0:04:45.2]} 9. Nc3 {[%clk 0:04:37.4]} 9... Rc8
{[%clk 0:04:41.4]} 10. Rc1 {[%clk 0:04:35.9]} 10... Bb4 {[%clk 0:04:39.2]} 11.
Nf3 {[%clk 0:04:34.1]} 11... Ne7 {[%clk 0:04:35.8]} 12. Bd3 {[%clk 0:04:32.5]}
12... Nc6 {[%clk 0:04:31.7]} 13. O-O {[%clk 0:04:23.3]} 13... Nxd4 {[%clk
0:04:26.7]} 14. Nxd4 {[%clk 0:04:22.3]} 14... Qxd4 {[%clk 0:04:25.5]} 15. Qg5
{[%clk 0:04:22]} 15... Qxd3 {[%clk 0:04:14.8]} 16. Qxg7 {[%clk 0:04:21]} 16...
Rf8 {[%clk 0:04:11.3]} 17. Rfd1 {[%clk 0:04:19.8]} 17... Qg6 {[%clk 0:04:08]}
0-1

[Event "Live Chess"]
[Site "Chess.com"]
[Date "2023.05.21"]
[Round "-"]
[White "raminguy"]
[Black "WelshTiger"]
[Result "1/2-1/2"]
[WhiteElo "1969"]
[BlackElo "2319"]
[TimeControl "300"]
[EndTime "4:11:48 PDT"]
[Termination "Game drawn by repetition"]

1. d4 {[%clk 0:04:58.9]} 1... e6 {[%clk 0:04:58.7]} 2. Nc3 {[%clk 0:04:58.2]}
2... c5 {[%clk 0:04:57.6]} 3. d5 {[%clk 0:04:57]} 3... Nf6 {[%clk 0:04:52.9]} 4.
e4 {[%clk 0:04:55.2]} 4... exd5 {[%clk 0:04:51]} 5. e5 {[%clk 0:04:53.8]} 5...
Ng8 {[%clk 0:04:38.1]} 6. Nxd5 {[%clk 0:04:52.1]} 6... Ne7 {[%clk 0:04:37.4]} 7.
Bg5 {[%clk 0:04:49.1]} 7... Qa5+ {[%clk 0:04:31.6]} 8. Bd2 {[%clk 0:04:47.7]}
8... Qd8 {[%clk 0:04:30.4]} 9. Bg5 {[%clk 0:04:46.8]} 9... Qa5+ {[%clk
0:04:27.7]} 10. Bd2 {[%clk 0:04:45.9]} 10... Qd8 {[%clk 0:04:25.5]} 11. Bg5
{[%clk 0:04:45.1]} 1/2-1/2

[Event "Live Chess"]
[Site "Chess.com"]
[Date "2023.05.21"]
[Round "-"]
[White "Crowded_House"]
[Black "Vitalii18a"]
[Result "1-0"]
[WhiteElo "1636"]
[BlackElo "1144"]
[TimeControl "300"]
[EndTime "4:12:02 PDT"]
[Termination "Crowded_House won by checkmate"]

1. d4 {[%clk 0:04:55.9]} 1... d5 {[%clk 0:04:57.4]} 2. Bg5 {[%clk 0:04:55.2]}
2... Nf6 {[%clk 0:04:40.4]} 3. e3 {[%clk 0:04:53]} 3... h6 {[%clk 0:04:38.3]} 4.
Bh4 {[%clk 0:04:51.4]} 4... g5 {[%clk 0:04:36.3]} 5. Bg3 {[%clk 0:04:49.9]} 5...
Bg7 {[%clk 0:04:34.2]} 6. c3 {[%clk 0:04:48.2]} 6... Ne4 {[%clk 0:04:32.4]} 7.
Bd3 {[%clk 0:04:45.1]} 7... O-O {[%clk 0:04:29.4]} 8. Nd2 {[%clk 0:04:41.5]}
8... c6 {[%clk 0:04:15.9]} 9. Nxe4 {[%clk 0:04:38.4]} 9... dxe4 {[%clk
0:04:12.7]} 10. Bxe4 {[%clk 0:04:37.6]} 10... f5 {[%clk 0:04:06.1]} 11. Bxb8
{[%clk 0:04:24.8]} 11... Rxb8 {[%clk 0:04:03.3]} 12. Bc2 {[%clk 0:04:19.7]}
12... f4 {[%clk 0:03:55.9]} 13. exf4 {[%clk 0:04:02.4]} 13... Qd5 {[%clk
0:03:45.7]} 14. Bb3 {[%clk 0:03:53.4]} 14... Be6 {[%clk 0:03:28.3]} 15. Bxd5
{[%clk 0:03:52.5]} 15... Bxd5 {[%clk 0:03:27.1]} 16. Nf3 {[%clk 0:03:44.4]}
16... Rxf4 {[%clk 0:03:23.4]} 17. O-O {[%clk 0:03:39.8]} 17... Bxf3 {[%clk
0:03:19.5]} 18. gxf3 {[%clk 0:03:37.8]} 18... e5 {[%clk 0:02:58.1]} 19. dxe5
{[%clk 0:03:32.3]} 19... Bxe5 {[%clk 0:02:56.7]} 20. Qe2 {[%clk 0:03:19.7]}
20... Re8 {[%clk 0:02:52.9]} 21. Rae1 {[%clk 0:03:13.3]} 21... Rf5 {[%clk
0:02:21.3]} 22. Qd3 {[%clk 0:03:09.9]} 22... Ref8 {[%clk 0:02:11.1]} 23. Re3
{[%clk 0:02:54.2]} 23... Bc7 {[%clk 0:02:02.9]} 24. Qc4+ {[%clk 0:02:47.9]}
24... Kh8 {[%clk 0:01:57]} 25. Qd4+ {[%clk 0:02:36.2]} 25... Kg8 {[%clk
0:01:50.5]} 26. Re7 {[%clk 0:02:35]} 26... Bb6 {[%clk 0:01:47.3]} 27. Qg7#
{[%clk 0:02:32.4]} 1-0

[Event "Live Chess"]
[Site "Chess.com"]
[Date "2023.05.21"]
[Round "-"]
[White "hturner40"]
[Black "defenderalist"]
[Result "0-1"]
[WhiteElo "1773"]
[BlackElo "1657"]
[TimeControl "300"]
[EndTime "4:12:19 PDT"]
[Termination "defenderalist won on time"]

1. Nf3 {[%clk 0:04:55.8]} 1... b6 {[%clk 0:04:58.1]} 2. g3 {[%clk 0:04:53.6]}
2... Bb7 {[%clk 0:04:57.6]} 3. Bg2 {[%clk 0:04:52.8]} 3... g6 {[%clk 0:04:56]}
4. O-O {[%clk 0:04:51.3]} 4... Bg7 {[%clk 0:04:55.5]} 5. d4 {[%clk 0:04:49.9]}
5... h5 {[%clk 0:04:54.3]} 6. c4 {[%clk 0:04:48]} 6... Nf6 {[%clk 0:04:52]} 7.
Nc3 {[%clk 0:04:46.8]} 7... e6 {[%clk 0:04:43.7]} 8. Bg5 {[%clk 0:04:44.9]} 8...
d5 {[%clk 0:04:36.8]} 9. Ne5 {[%clk 0:04:38.9]} 9... Nbd7 {[%clk 0:04:32.5]} 10.
Qa4 {[%clk 0:04:33.8]} 10... O-O {[%clk 0:04:27.6]} 11. Nc6 {[%clk 0:04:01.8]}
11... Qe8 {[%clk 0:04:16.9]} 12. cxd5 {[%clk 0:03:40.2]} 12... exd5 {[%clk
0:04:10.1]} 13. Nxd5 {[%clk 0:03:36.6]} 13... Nxd5 {[%clk 0:04:08.8]} 14. Bxd5
{[%clk 0:03:35.3]} 14... Kh7 {[%clk 0:03:55.3]} 15. e4 {[%clk 0:03:04.7]} 15...
a6 {[%clk 0:03:35]} 16. Rfe1 {[%clk 0:02:45.3]} 16... f6 {[%clk 0:03:33.5]} 17.
Be3 {[%clk 0:02:34.9]} 17... b5 {[%clk 0:03:32.2]} 18. Qd1 {[%clk 0:02:29.3]}
18... Nb6 {[%clk 0:03:30.5]} 19. Nb4 {[%clk 0:02:22.6]} 19... Nxd5 {[%clk
0:03:29]} 20. exd5 {[%clk 0:02:15.3]} 20... Qd7 {[%clk 0:03:22.2]} 21. Rc1
{[%clk 0:01:58.3]} 21... Bxd5 {[%clk 0:03:16.2]} 22. Nxd5 {[%clk 0:01:54.6]}
22... Qxd5 {[%clk 0:03:14.8]} 23. Rxc7 {[%clk 0:01:53.5]} 23... Rac8 {[%clk
0:03:10.4]} 24. Qc1 {[%clk 0:01:44.7]} 24... Rxc7 {[%clk 0:03:09.1]} 25. Qxc7
{[%clk 0:01:43]} 25... Rf7 {[%clk 0:03:08.2]} 26. Qa5 {[%clk 0:01:37.7]} 26...
f5 {[%clk 0:03:00.2]} 27. Rd1 {[%clk 0:01:13]} 27... h4 {[%clk 0:02:58]} 28. b3
{[%clk 0:01:02.2]} 28... h3 {[%clk 0:02:56.3]} 29. Kf1 {[%clk 0:00:53.9]} 29...
Qg2+ {[%clk 0:02:53.4]} 30. Ke2 {[%clk 0:00:52.9]} 30... Qxh2 {[%clk 0:02:49.5]}
31. Qd8 {[%clk 0:00:33.9]} 31... Bf6 {[%clk 0:02:46.6]} 32. Qd5 {[%clk
0:00:31.7]} 32... Kg7 {[%clk 0:02:39.6]} 33. Rh1 {[%clk 0:00:25.5]} 33... Qg2
{[%clk 0:02:38.4]} 34. Qxg2 {[%clk 0:00:23]} 34... hxg2 {[%clk 0:02:37.4]} 35.
Rg1 {[%clk 0:00:22.2]} 35... Re7 {[%clk 0:02:35.1]} 36. Rxg2 {[%clk 0:00:19.1]}
36... Bxd4 {[%clk 0:02:33.1]} 37. Kf3 {[%clk 0:00:17.6]} 37... Bxe3 {[%clk
0:02:32]} 38. fxe3 {[%clk 0:00:16.3]} 38... Kf6 {[%clk 0:02:26.2]} 39. Rc2
{[%clk 0:00:14.1]} 39... Re6 {[%clk 0:02:25.2]} 40. Rc8 {[%clk 0:00:10.7]} 40...
g5 {[%clk 0:02:24]} 41. Rf8+ {[%clk 0:00:08.8]} 41... Ke5 {[%clk 0:02:23]} 42.
g4 {[%clk 0:00:02.7]} 42... fxg4+ {[%clk 0:01:59.8]} 43. Kxg4 {[%clk 0:00:01.1]}
43... Ke4 {[%clk 0:01:54.4]} 0-1

[Event "Live Chess"]
[Site "Chess.com"]
[Date "2023.05.21"]
[Round "-"]
[White "McSlash1"]
[Black "RoaringKnights"]
[Result "1-0"]
[WhiteElo "2003"]
[BlackElo "1076"]
[TimeControl "300"]
[EndTime "4:12:39 PDT"]
[Termination "McSlash1 won by checkmate"]

1. e4 {[%clk 0:04:59.3]} 1... e5 {[%clk 0:04:57.5]} 2. Nf3 {[%clk 0:04:58.2]}
2... Nc6 {[%clk 0:04:54]} 3. Bb5 {[%clk 0:04:57.8]} 3... a6 {[%clk 0:04:51.1]}
4. Ba4 {[%clk 0:04:56.4]} 4... b5 {[%clk 0:04:48.6]} 5. Bb3 {[%clk 0:04:53.4]}
5... Bc5 {[%clk 0:04:46.3]} 6. O-O {[%clk 0:04:52.1]} 6... Nf6 {[%clk
0:04:43.4]} 7. c3 {[%clk 0:04:51.6]} 7... O-O {[%clk 0:04:35.8]} 8. d4 {[%clk
0:04:50.9]} 8... exd4 {[%clk 0:04:34.6]} 9. cxd4 {[%clk 0:04:50.8]} 9... Bb6
{[%clk 0:04:30.5]} 10. e5 {[%clk 0:04:42.8]} 10... Ng4 {[%clk 0:04:24.5]} 11. h3
{[%clk 0:04:40.6]} 11... Ngxe5 {[%clk 0:04:21.3]} 12. dxe5 {[%clk 0:04:39.2]}
12... Re8 {[%clk 0:04:18.8]} 13. Qd5 {[%clk 0:04:37.2]} 13... Qe7 {[%clk
0:04:07.1]} 14. Bg5 {[%clk 0:04:34.2]} 14... Qe6 {[%clk 0:04:03.2]} 15. Qe4
{[%clk 0:04:28.8]} 15... Qg6 {[%clk 0:03:57.7]} 16. Qh4 {[%clk 0:04:24]} 16...
h6 {[%clk 0:03:55.7]} 17. Be3 {[%clk 0:04:17.4]} 17... Bxe3 {[%clk 0:03:50]} 18.
fxe3 {[%clk 0:04:17.3]} 18... d6 {[%clk 0:03:49.3]} 19. Nd4 {[%clk 0:04:15.6]}
19... Nxe5 {[%clk 0:03:48]} 20. Bc2 {[%clk 0:04:07]} 20... Nf3+ {[%clk
0:03:33.3]} 21. Rxf3 {[%clk 0:04:02.9]} 21... Qg5 {[%clk 0:03:25.6]} 22. Qe4
{[%clk 0:03:59.9]} 22... Rxe4 {[%clk 0:03:21.5]} 23. Bxe4 {[%clk 0:03:57.3]}
23... Rb8 {[%clk 0:03:15.4]} 24. Nc3 {[%clk 0:03:55.9]} 24... c5 {[%clk
0:03:10.8]} 25. Nc6 {[%clk 0:03:52.9]} 25... Rb6 {[%clk 0:03:04.6]} 26. Raf1
{[%clk 0:03:46.8]} 26... f6 {[%clk 0:02:59.6]} 27. Ne7+ {[%clk 0:03:44.5]} 27...
Kh8 {[%clk 0:02:52.4]} 28. Nxc8 {[%clk 0:03:43.8]} 28... Rb8 {[%clk 0:02:48.4]}
29. Nxd6 {[%clk 0:03:42]} 29... Rd8 {[%clk 0:02:44.2]} 30. Nf7+ {[%clk
0:03:39.5]} 30... Kg8 {[%clk 0:02:41.2]} 31. Nxg5 {[%clk 0:03:39.4]} 31... hxg5
{[%clk 0:02:39.2]} 32. h4 {[%clk 0:03:36.9]} 32... gxh4 {[%clk 0:02:37.3]} 33.
Rf4 {[%clk 0:03:35.1]} 33... Rd2 {[%clk 0:02:34.8]} 34. Rxh4 {[%clk 0:03:33.2]}
34... Rxb2 {[%clk 0:02:32.3]} 35. Bg6 {[%clk 0:03:29.9]} 35... Kf8 {[%clk
0:02:27.9]} 36. Re4 {[%clk 0:03:29.3]} 36... b4 {[%clk 0:02:23.2]} 37. Re8#
{[%clk 0:03:29.2]} 1-0

[Event "Live Chess"]
[Site "Chess.com"]
[Date "2023.05.21"]
[Round "-"]
[White "Twickenham2014"]
[Black "LL220284LL"]
[Result "0-1"]
[WhiteElo "2281"]
[BlackElo "2324"]
[TimeControl "300"]
[EndTime "4:12:56 PDT"]
[Termination "LL220284LL won by resignation"]

1. e4 {[%clk 0:04:56.7]} 1... Nc6 {[%clk 0:04:56.7]} 2. d4 {[%clk 0:04:55.7]}
2... e5 {[%clk 0:04:55.5]} 3. Nf3 {[%clk 0:04:52.7]} 3... exd4 {[%clk
0:04:53.9]} 4. Nxd4 {[%clk 0:04:51.2]} 4... Nf6 {[%clk 0:04:53.1]} 5. Nxc6
{[%clk 0:04:50.1]} 5... bxc6 {[%clk 0:04:52]} 6. e5 {[%clk 0:04:49.7]} 6... Qe7
{[%clk 0:04:50.4]} 7. Qe2 {[%clk 0:04:48.8]} 7... Nd5 {[%clk 0:04:48.8]} 8. c4
{[%clk 0:04:45.8]} 8... Ba6 {[%clk 0:04:46.7]} 9. b3 {[%clk 0:04:43.4]} 9... g6
{[%clk 0:04:37.7]} 10. Bb2 {[%clk 0:04:42.6]} 10... Bg7 {[%clk 0:04:36.5]} 11.
g3 {[%clk 0:04:42]} 11... O-O {[%clk 0:04:33.8]} 12. Bg2 {[%clk 0:04:41.5]}
12... Rae8 {[%clk 0:04:30.9]} 13. O-O {[%clk 0:04:40.8]} 13... Nb6 {[%clk
0:04:24.2]} 14. Re1 {[%clk 0:04:37.8]} 14... d5 {[%clk 0:04:14.4]} 15. Nd2
{[%clk 0:04:22.9]} 15... Nd7 {[%clk 0:03:18.2]} 16. Qe3 {[%clk 0:03:59.1]} 16...
Bxe5 {[%clk 0:02:46.9]} 17. Bxe5 {[%clk 0:03:47.2]} 17... Qxe5 {[%clk
0:02:43.8]} 18. Qxa7 {[%clk 0:03:44.1]} 18... Qxe1+ {[%clk 0:02:40.6]} 19. Rxe1
{[%clk 0:03:44]} 19... Rxe1+ {[%clk 0:02:40]} 20. Nf1 {[%clk 0:03:43.1]} 20...
Bc8 {[%clk 0:02:34.6]} 21. Qxc7 {[%clk 0:03:37.2]} 21... dxc4 {[%clk 0:02:31.2]}
22. bxc4 {[%clk 0:03:26.6]} 22... Ne5 {[%clk 0:02:29.9]} 23. h3 {[%clk
0:03:03.9]} 23... Be6 {[%clk 0:02:20.6]} 24. Kh2 {[%clk 0:02:19.4]} 24... Ra8
{[%clk 0:02:09]} 25. Ne3 {[%clk 0:02:05.4]} 25... Nd3 {[%clk 0:01:56.9]} 26.
Bxc6 {[%clk 0:01:44.9]} 26... Rc8 {[%clk 0:01:43.3]} 27. Qb7 {[%clk 0:01:27.1]}
27... Nxf2 {[%clk 0:01:38]} 28. Bd5 {[%clk 0:01:16.7]} 28... Re8 {[%clk
0:01:25.3]} 29. Kg2 {[%clk 0:01:12.3]} 29... Nxh3 {[%clk 0:01:10.9]} 30. Bxe6
{[%clk 0:01:07.9]} 30... Rxe6 {[%clk 0:01:09.5]} 31. Kxh3 {[%clk 0:00:51.5]}
31... R6xe3 {[%clk 0:01:08.4]} 32. c5 {[%clk 0:00:50.7]} 32... Rc3 {[%clk
0:00:57.9]} 33. Qb8+ {[%clk 0:00:46.1]} 33... Kg7 {[%clk 0:00:56.9]} 34. Qb2
{[%clk 0:00:41]} 34... Rc1 {[%clk 0:00:56]} 35. c6 {[%clk 0:00:39.5]} 35... Kh6
{[%clk 0:00:51.8]} 36. Qd2+ {[%clk 0:00:38.4]} 36... g5 {[%clk 0:00:48.3]} 37.
Qd6+ {[%clk 0:00:31.2]} 37... Kg7 {[%clk 0:00:47]} 38. Qe5+ {[%clk 0:00:30.4]}
38... Kg6 {[%clk 0:00:45.1]} 39. Qe4+ {[%clk 0:00:28.9]} 39... Kh6 {[%clk
0:00:41.4]} 40. Qf5 {[%clk 0:00:25.1]} 40... Rxc6 {[%clk 0:00:33]} 41. Qxf7
{[%clk 0:00:24.4]} 41... g4+ {[%clk 0:00:26.1]} 42. Kxg4 {[%clk 0:00:23.1]}
42... R1c4+ {[%clk 0:00:25.3]} 43. Kh3 {[%clk 0:00:22.5]} 43... Rc1 {[%clk
0:00:23.1]} 44. Qf8+ {[%clk 0:00:21.7]} 44... Kg6 {[%clk 0:00:21.9]} 45. Qg8+
{[%clk 0:00:21.1]} 45... Kh6 {[%clk 0:00:20.8]} 46. Kh4 {[%clk 0:00:19.8]} 46...
Rh1+ {[%clk 0:00:19.3]} 47. Kg4 {[%clk 0:00:19.2]} 47... Rg6+ {[%clk 0:00:18.2]}
48. Qxg6+ {[%clk 0:00:17.4]} 48... Kxg6 {[%clk 0:00:18.1]} 49. a4 {[%clk
0:00:16.1]} 49... Ra1 {[%clk 0:00:18]} 50. a5 {[%clk 0:00:15]} 50... Rxa5 {[%clk
0:00:17.5]} 0-1